bitfinex-derivatives/quotes_SOLF0:USTF0_20250206
["timestamp","ask_amount","ask_price","bid_price","bid_amount"]
[1738827154496,23.50195256,203.02,202.94,13.10879107]
[1738827154894,28.42585256,203.02,202.94,18.03449107]
[1738827155204,0.0351638,203.0,202.96,0.03669337]
[1738827156403,0.0351638,203.0,202.98,4.9247]
[1738827159003,0.0351638,203.0,202.97,13.10879107]
[1738827159706,0.0351638,203.0,202.96,0.03669337]
[1738827160009,245.86409644,203.13,202.97,13.10879107]
[1738827160206,61.18166627,203.13,203.01,13.10879107]
[1738827160503,4.9225,203.08,203.01,13.10879107]
[1738827161208,0.03293596,203.07,203.02,0.03257717]
[1738827162207,4.923,203.06,203.02,0.03257717]
[1738827162811,0.03293596,203.07,203.04,4.9233]
[1738827165414,0.03293596,203.07,203.06,4.9229]
[1738827169013,0.03293596,203.07,203.02,0.03257717]
[1738827169918,4.9229,203.06,203.02,0.03257717]
[1738827173421,0.03293596,203.07,203.02,0.03257717]
[1738827173919,13.14172703,203.07,203.02,0.03257717]
[1738827174312,4.9236,203.03,203.02,0.03257717]
[1738827175321,0.03293596,203.07,203.02,0.03257717]
[1738827176021,4.95573596,203.07,203.02,0.03257717]
[1738827176222,0.03293596,203.07,203.02,0.03257717]
[1738827176720,4.9229,203.06,203.02,0.03257717]
[1738827176923,0.03293596,203.07,203.02,0.03257717]
[1738827177221,4.923,203.06,203.02,0.03257717]
[1738827177423,0.03293596,203.07,203.02,0.03257717]
[1738827177819,4.95583596,203.07,203.02,0.03257717]
[1738827178520,4.9229,203.06,203.02,0.03257717]
[1738827179525,4.9231,203.05,203.02,0.03257717]
[1738827179925,0.03293596,203.07,203.02,0.03257717]
[1738827180424,4.9236,203.03,203.02,0.03257717]
[1738827182328,4.9236,203.03,202.95,13.10879107]
[1738827182329,1.5198,203.06,202.95,13.10879107]
[1738827182529,4.9241,203.01,202.95,13.10879107]
[1738827183030,1.5198,203.06,202.95,13.10879107]
[1738827183227,4.9239,203.02,202.96,4.9253]
[1738827183529,0.03519021,203.01,202.97,0.03290324]
[1738827184233,4.95929021,203.01,202.97,0.03290324]
[1738827184433,0.03519021,203.01,202.97,0.03290324]
[1738827185834,4.9246,202.99,202.97,0.03290324]
[1738827186936,4.95949021,203.01,202.97,0.03290324]
[1738827187136,0.03519021,203.01,202.97,0.03290324]
[1738827188738,0.03519021,203.01,202.97,4.95790324]
[1738827191934,0.03519021,203.01,202.97,0.03290324]
[1738827195646,4.95929021,203.01,202.97,0.03290324]
[1738827197934,0.03519021,203.01,202.97,0.03290324]
[1738827198139,4.9246,202.99,202.97,0.03290324]
[1738827199338,0.03519021,203.01,202.97,0.03290324]
[1738827200037,4.9248,202.98,202.97,0.03290324]
[1738827200936,0.03519021,203.01,202.97,0.03290324]
[1738827201133,4.9246,203.0,202.97,0.03290324]
[1738827202139,4.9247,202.99,202.97,0.03290324]
[1738827205144,4.9248,202.98,202.97,0.03290324]
[1738827206738,8.38629531,202.99,202.9,8.38629531]
[1738827206934,4.9257,202.95,202.9,8.38629531]
[1738827207246,8.38629531,202.99,202.9,8.38629531]
[1738827207541,4.9252,202.97,202.9,8.38629531]
[1738827207743,8.38629531,202.99,202.9,8.38629531]
[1738827208040,0.03331606,202.96,202.91,0.03565306]
[1738827208642,4.9263,202.93,202.91,0.03565306]
[1738827210041,4.9263,202.92,202.91,0.03565306]
[1738827211346,0.03331606,202.96,202.91,0.03565306]
[1738827213752,0.03331606,202.96,202.94,8.38629531]
[1738827216047,4.95871606,202.96,202.92,8.38629531]
[1738827216649,4.95871606,202.96,202.91,0.03565306]
[1738827218050,0.03331606,202.96,202.91,0.03565306]
[1738827219254,4.9256,202.95,202.91,0.03565306]
[1738827219951,4.9258,202.94,202.91,0.03565306]
[1738827220152,0.03331606,202.96,202.91,0.03565306]
[1738827220550,4.9257,202.95,202.91,0.03565306]
[1738827220757,0.03331606,202.96,202.91,0.03565306]
[1738827221657,13.14079977,202.96,202.91,0.03565306]
[1738827221861,4.9263,202.92,202.91,0.03565306]
[1738827222455,4.9279,202.86,202.84,3.934e-05]
[1738827223059,6.4894,202.86,202.84,3.934e-05]
[1738827223458,4.9282,202.84,202.83,13.31595738]
[1738827223657,4.9282,202.84,202.83,10.92805445]
[1738827224253,18.03568371,202.84,202.82,45.98006922]
[1738827224454,4.929,202.81,202.79,118.08612497]
[1738827224657,13.10748371,202.8,202.64,95.14494374]
[1738827225657,0.0344076,202.74,202.64,95.14494374]
[1738827226563,0.0344076,202.74,202.64,82.03746003]
[1738827227262,4.9651076,202.74,202.65,4.9328]
[1738827229958,0.0344076,202.74,202.67,13.10748371]
[1738827230557,0.0344076,202.74,202.69,4.9318]
[1738827230763,0.0344076,202.74,202.67,13.10748371]
[1738827231864,0.0344076,202.74,202.7,4.9315]
[1738827240379,0.0344076,202.74,202.72,4.9311]
[1738827240774,0.0344076,202.74,202.7,13.10748371]
[1738827240980,0.0344076,202.74,202.71,4.9313]
[1738827242381,0.0344076,202.74,202.7,13.10748371]
[1738827242882,0.0344076,202.74,202.69,4.9318]
[1738827243181,13.10748371,202.7,202.5,13.10748371]
[1738827243377,13.10748371,202.67,202.55,2.9147]
[1738827243683,4.9341,202.6,202.55,2.9147]
[1738827243883,0.0340728,202.62,202.55,2.9147]
[1738827244381,0.0340728,202.62,202.5,13.10748371]
[1738827244584,0.0340728,202.62,202.5,16.02218371]
[1738827244778,4.9343,202.59,202.5,16.02218371]
[1738827245279,0.03310619,202.57,202.5,16.02218371]
[1738827245786,0.03310619,202.57,202.53,18.04318371]
[1738827246083,0.03310619,202.57,202.53,13.10748371]
[1738827246785,0.03310619,202.57,202.54,4.9355]
[1738827247083,0.03310619,202.57,202.53,13.10748371]
[1738827248285,0.03310619,202.57,202.54,4.9355]
[1738827250580,0.03310619,202.57,202.51,1.5408]
[1738827251582,0.03310619,202.57,202.5,2.9147]
[1738827252785,4.9356,202.54,202.5,2.9147]
[1738827253083,0.03310619,202.57,202.5,2.9147]
[1738827253786,4.9353,202.55,202.5,2.9147]
[1738827254592,4.9355,202.54,202.5,2.9147]
[1738827254983,0.03310619,202.57,202.5,2.9147]
[1738827255689,4.9356,202.54,202.5,2.9147]
[1738827260692,4.9356,202.54,202.47,4.9372]
[1738827261182,0.03338776,202.53,202.47,4.9372]
[1738827262289,4.96928776,202.53,202.47,4.9372]
[1738827263791,4.936,202.52,202.46,4.9374]
[1738827266087,4.9368,202.49,202.45,3.024]
[1738827266608,13.10748371,202.52,202.45,1.476]
[1738827267190,0.03338776,202.53,202.45,1.476]
[1738827267689,4.9362,202.52,202.45,6.4137]
[1738827267894,13.10748371,202.52,202.45,1.476]
[1738827271000,4.9365,202.5,202.45,1.476]
[1738827271799,13.10748371,202.52,202.42,1.5362]
[1738827272298,0.0328374,202.49,202.42,1.5362]
[1738827272695,8.46208575,202.49,202.42,9.96544835]
[1738827273600,4.9375,202.46,202.4,8.42924835]
[1738827273901,8.42924835,202.45,202.38,10.03444835]
[1738827274299,0.03512025,202.44,202.38,10.03444835]
[1738827274498,4.9383,202.43,202.38,10.03444835]
[1738827274693,0.03512025,202.44,202.38,10.03444835]
[1738827275199,0.03512025,202.44,202.39,4.9391]
[1738827275598,0.03512025,202.44,202.38,10.03444835]
[1738827275900,4.97312025,202.44,202.38,10.03444835]
[1738827276902,0.03512025,202.44,202.38,10.03444835]
[1738827277296,0.03512025,202.44,202.39,4.9389]
[1738827277599,4.9382,202.43,202.38,10.03444835]
[1738827278299,0.03512025,202.44,202.38,10.03444835]
[1738827278898,13.36764835,202.43,202.36,13.36904835]
[1738827279399,0.03512025,202.44,202.36,8.42924835]
[1738827279593,4.97312025,202.44,202.37,4.9396]
[1738827280403,0.03512025,202.44,202.36,13.36904835]
[1738827281802,4.97312025,202.44,202.36,13.36904835]
[1738827282998,0.03512025,202.44,202.4,8.42924835]
[1738827283303,28.82140091,202.47,202.4,8.42924835]
[1738827283505,0.03243113,202.44,202.38,8.42924835]
[1738827283802,33.75870091,202.47,202.38,8.42924835]
[1738827284002,0.03658421,202.43,202.38,8.42924835]
[1738827284204,33.75870091,202.47,202.38,8.42924835]
[1738827284406,33.75870091,202.47,202.4,8.42924835]
[1738827284698,13.36654835,202.47,202.4,8.42924835]
[1738827285104,13.36654835,202.47,202.26,293.1]
[1738827285105,13.36744835,202.43,202.36,4.9399]
[1738827285310,8.42924835,202.41,202.36,4.9399]
[1738827285501,8.42924835,202.41,202.37,0.03720987]
[1738827285999,4.97246772,202.42,202.37,0.03720987]
[1738827286304,0.03406772,202.42,202.39,8.42924835]
[1738827287705,0.03406772,202.42,202.4,4.9389]
[1738827287999,0.03406772,202.42,202.41,8.42924835]
[1738827288404,0.03406772,202.42,202.39,13.36814835]
[1738827288802,0.03406772,202.42,202.41,8.42924835]
[1738827289002,20.39215256,202.48,202.41,8.42924835]
[1738827289409,8.42924835,202.49,202.41,8.42924835]
[1738827289806,4.937,202.48,202.41,13.36794835]
[1738827290206,0.03566255,202.47,202.42,0.03558266]
[1738827290502,4.9382,202.44,202.42,0.03558266]
[1738827291008,8.42924835,202.43,202.42,0.03558266]
[1738827291807,13.36744835,202.43,202.42,0.03558266]
[1738827292412,8.42924835,202.43,202.42,0.03558266]
[1738827294300,13.36744835,202.43,202.42,0.03558266]
[1738827297006,8.42924835,202.43,202.42,0.03558266]
[1738827297810,8.42924835,202.45,202.42,0.03558266]
[1738827298006,0.03566255,202.47,202.42,0.03558266]
[1738827298215,8.42924835,202.43,202.42,0.03558266]
[1738827298912,0.03566255,202.47,202.42,8.46483101]
[1738827299811,0.03566255,202.47,202.42,0.03558266]
[1738827301210,0.03566255,202.47,202.43,4.9382]
[1738827301413,0.03566255,202.47,202.44,8.42924835]
[1738827301612,0.03566255,202.47,202.44,10.02874835]
[1738827302208,20.39215256,202.51,202.46,8.42924835]
[1738827302409,20.39215256,202.51,202.48,8.42924835]
[1738827302610,20.39215256,202.51,202.5,8.42924835]
[1738827303011,54.37907351,202.52,202.5,8.42924835]
[1738827303212,54.37907351,202.52,202.51,4.9362]
[1738827303813,54.37907351,202.52,202.5,8.42924835]
[1738827304310,54.37907351,202.52,202.5,13.36564835]
[1738827305414,0.03198923,202.53,202.5,13.36564835]
[1738827306216,0.03198923,202.53,202.51,4.9362]
[1738827310012,0.03198923,202.53,202.52,4.936]
[1738827313124,0.03198923,202.53,202.52,13.36524835]
[1738827320421,0.03198923,202.53,202.52,4.936]
[1738827320728,0.03198923,202.53,202.51,4.9362]
[1738827322326,0.03198923,202.53,202.5,8.42924835]
[1738827323127,0.03198923,202.53,202.49,4.97155267]
[1738827325133,0.03198923,202.53,202.52,4.936]
[1738827326729,0.03198923,202.53,202.52,13.36524835]
[1738827332744,0.03198923,202.53,202.52,4.936]
[1738827334045,0.03198923,202.53,202.52,13.36524835]
[1738827334437,0.03198923,202.53,202.52,4.936]
[1738827335344,0.03198923,202.53,202.52,13.36524835]
[1738827337245,8.42924835,202.62,202.52,8.42924835]
[1738827337449,10.03214835,202.64,202.56,8.42924835]
[1738827338254,0.03781095,202.62,202.57,0.03170324]
[1738827339851,0.03781095,202.62,202.58,4.9345]
[1738827340555,0.03781095,202.62,202.57,0.03170324]
[1738827340754,0.03781095,202.62,202.57,4.96650324]
[1738827340955,8.4670593,202.62,202.57,0.03170324]
[1738827341254,8.42924835,202.6,202.57,0.03170324]
[1738827342151,13.36354835,202.6,202.57,0.03170324]
[1738827343050,4.9343,202.59,202.57,0.03170324]
[1738827344055,13.36374835,202.58,202.52,4.9358]
[1738827344257,8.42924835,202.58,202.5,8.42924835]
[1738827344457,4.935,202.57,202.51,4.9362]
[1738827344759,8.42924835,202.56,202.5,8.42924835]
[1738827344957,8.42924835,202.54,202.48,8.42924835]
[1738827345360,0.03438634,202.53,202.49,0.03328138]
[1738827345559,8.42924835,202.52,202.49,0.03328138]
[1738827347361,13.36534835,202.52,202.49,0.03328138]
[1738827348164,8.42924835,202.52,202.49,0.03328138]
[1738827348754,13.36534835,202.52,202.49,0.03328138]
[1738827349061,8.42924835,202.52,202.49,0.03328138]
[1738827349261,8.42924835,202.5,202.42,13.36754835]
[1738827349461,8.42924835,202.48,202.4,8.42924835]
[1738827349761,13.36594835,202.5,202.42,8.42924835]
[1738827350153,8.42924835,202.5,202.42,8.42924835]
[1738827350359,0.03451352,202.48,202.44,0.03585571]
[1738827350965,4.97151352,202.48,202.44,0.03585571]
[1738827351164,8.46376187,202.48,202.44,0.03585571]
[1738827351561,4.9375,202.46,202.44,0.03585571]
[1738827353469,13.36674835,202.46,202.44,0.03585571]
[1738827354065,8.42924835,202.46,202.44,0.03585571]
[1738827354267,4.9377,202.45,202.44,0.03585571]
[1738827354864,4.938,202.44,202.38,8.42924835]
[1738827355067,13.36724835,202.44,202.38,8.42924835]
[1738827355671,8.42924835,202.46,202.38,8.42924835]
[1738827355874,8.42924835,202.46,202.4,8.42924835]
[1738827356071,0.03794886,202.44,202.4,8.46659836]
[1738827358268,4.97594886,202.44,202.4,8.46659836]
[1738827359975,0.03794886,202.44,202.4,8.46659836]
[1738827362175,0.03794886,202.44,202.4,0.03735001]
[1738827362575,4.97614886,202.44,202.4,0.03735001]
[1738827366074,0.03794886,202.44,202.4,0.03735001]
[1738827366276,4.9382,202.43,202.4,0.03735001]
[1738827375889,8.42924835,202.42,202.3,8.42924835]
[1738827376095,8.42924835,202.31,202.24,8.42924835]
[1738827376295,8.42924835,202.29,202.22,8.42924835]
[1738827376697,8.42924835,202.27,202.2,8.42924835]
[1738827377099,8.42924835,202.25,202.19,4.9441]
[1738827377294,8.42924835,202.25,202.18,27.31168386]
[1738827378200,0.03172558,202.26,202.2,8.42924835]
[1738827378503,0.03172558,202.26,202.22,8.42924835]
[1738827379598,0.03172558,202.26,202.24,4.9428]
[1738827380298,0.03172558,202.26,202.25,4.9426]
[1738827381699,0.03172558,202.26,202.24,4.9428]
[1738827381899,0.03172558,202.26,202.2,8.42924835]
[1738827382199,8.42924835,202.25,202.18,8.42924835]
[1738827382399,8.42924835,202.25,202.2,4.9438]
[1738827384194,8.42924835,202.25,202.19,4.9441]
[1738827384500,8.42924835,202.21,202.16,1.4966]
[1738827384698,8.42924835,202.21,202.14,8.42924835]
[1738827384900,8.42924835,202.21,202.16,8.42924835]
[1738827385197,0.03407965,202.2,202.16,8.42924835]
[1738827385594,0.03407965,202.2,202.17,4.9445]
[1738827387797,8.42924835,202.19,202.1,8.42924835]
[1738827388000,8.42924835,202.11,202.09,0.17878]
[1738827388399,0.03663053,202.12,202.09,0.17878]
[1738827388600,0.03663053,202.12,202.1,4.9462]
[1738827389097,0.03663053,202.12,202.09,0.17878]
[1738827390106,8.42924835,202.11,202.09,0.17878]
[1738827390304,13.37524835,202.11,202.09,0.17878]
[1738827390602,8.42924835,202.11,202.09,0.17878]
[1738827391301,0.03663053,202.12,202.09,0.17878]
[1738827392306,8.42924835,202.11,202.09,0.17878]
[1738827392707,4.98263053,202.12,202.09,0.17878]
[1738827392897,0.03663053,202.12,202.09,0.17878]
[1738827396018,0.03663053,202.12,202.03,13.22080405]
[1738827396809,0.03663053,202.12,202.06,4.947]
[1738827397712,0.03663053,202.12,202.08,4.9467]
[1738827398814,0.03663053,202.12,202.06,13.22080405]
[1738827399914,0.03663053,202.12,202.09,13.22080405]
[1738827400210,0.03663053,202.12,202.11,4.946]
[1738827401713,13.22080405,202.23,202.09,13.22080405]
[1738827401914,13.22080405,202.23,202.14,4.9452]
[1738827402611,4.9435,202.22,202.14,4.9452]
[1738827402808,4.9435,202.22,202.15,4.9449]
[1738827403012,0.03764659,202.2,202.16,0.03225426]
[1738827403410,16.25490405,202.26,202.19,4.9439]
[1738827403613,0.03132211,202.2,202.19,4.9439]
[1738827403807,16.25490405,202.26,202.19,4.9439]
[1738827404007,0.03217494,202.22,202.19,4.9439]
[1738827404413,0.03217494,202.22,202.18,13.22080405]
[1738827404917,0.03217494,202.22,202.21,4.9436]
[1738827414629,8.47941431,202.22,202.17,0.03450948]
[1738827416628,0.03217494,202.22,202.17,4.97880948]
[1738827420223,0.03217494,202.22,202.17,0.03450948]
[1738827421631,0.03217494,202.22,202.2,4.9437]
[1738827421824,0.03217494,202.22,202.18,13.20544653]
[1738827422230,0.03217494,202.22,202.19,4.944]
[1738827422432,0.03217494,202.22,202.18,13.20544653]
[1738827422833,0.03217494,202.22,202.17,0.03450948]
[1738827424134,0.03217494,202.22,202.18,4.9441]
[1738827425338,0.03217494,202.22,202.19,4.9441]
[1738827426433,0.03217494,202.22,202.17,0.03450948]
[1738827426638,0.03217494,202.22,202.2,4.9438]
[1738827427035,0.03217494,202.22,202.19,4.944]
[1738827427231,0.03217494,202.22,202.17,0.03450948]
[1738827428041,0.03217494,202.22,202.17,4.97900948]
[1738827428241,0.03217494,202.22,202.17,0.03450948]
[1738827428833,0.03217494,202.22,202.19,4.9439]
[1738827429738,0.03217494,202.22,202.2,4.9437]
[1738827431342,0.03217494,202.22,202.17,0.03450948]
[1738827431541,0.03217494,202.22,202.21,4.9436]
[1738827433832,7.494e-05,202.22,202.21,18.14904653]
[1738827434036,4.9406,202.34,202.27,4.9419]
[1738827435339,0.03739001,202.33,202.28,0.03440051]
[1738827435740,4.97829001,202.33,202.28,0.03440051]
[1738827435940,13.24283654,202.33,202.28,0.03440051]
[1738827436743,4.9416,202.29,202.28,0.03440051]
[1738827438046,4.9412,202.31,202.28,0.03440051]
[1738827438248,13.24283654,202.33,202.28,0.03440051]
[1738827438746,8.44555139,202.3,202.28,0.03440051]
[1738827443043,4.9416,202.29,202.28,0.03440051]
[1738827443241,8.44555139,202.3,202.18,8.44555139]
[1738827443452,8.44555139,202.26,202.18,8.44555139]
[1738827443644,8.44555139,202.26,202.2,4.9438]
[1738827443842,8.44555139,202.24,202.18,8.44555139]
[1738827444350,0.03505138,202.23,202.19,0.03708591]
[1738827444745,0.03505138,202.23,202.19,4.98108591]
[1738827446551,0.03505138,202.23,202.19,0.03708591]
[1738827447743,0.03505138,202.23,202.19,4.98118591]
[1738827447950,0.03505138,202.23,202.2,8.44555139]
[1738827449049,0.03505138,202.23,202.22,4.9433]
[1738827452658,0.03505138,202.23,202.2,4.9438]
[1738827452858,0.03505138,202.23,202.19,0.03708591]
[1738827453256,0.03505138,202.23,202.2,8.44555139]
[1738827454859,0.03505138,202.23,202.22,4.9433]
[1738827455855,0.03505138,202.23,202.2,8.44555139]
[1738827456059,0.03505138,202.23,202.2,4.9436]
[1738827461764,0.03505138,202.23,202.19,0.03708591]
[1738827462754,0.03505138,202.23,202.19,4.98098591]
[1738827465863,0.03505138,202.23,202.19,0.03708591]
[1738827466064,0.03505138,202.23,202.2,4.9438]
[1738827466858,0.03505138,202.23,202.2,13.38935139]
[1738827468763,4.9438,202.2,202.19,0.03708591]
[1738827468964,8.48060277,202.23,202.19,0.03708591]
[1738827470761,4.9437,202.21,202.19,0.03708591]
[1738827471463,13.42380277,202.23,202.19,0.03708591]
[1738827475871,0.03505138,202.23,202.19,0.03708591]
[1738827476070,0.03505138,202.23,202.2,8.44555139]
[1738827478868,0.03505138,202.23,202.19,4.98108591]
[1738827480169,0.03505138,202.23,202.2,8.44555139]
[1738827480374,0.03505138,202.23,202.22,8.44555139]
[1738827481671,0.03505138,202.23,202.22,13.38885139]
[1738827483877,20.28348983,202.32,202.26,4.9421]
[1738827484073,20.28348983,202.32,202.27,8.44555139]
[1738827484776,8.44555139,202.33,202.27,13.38765139]
[1738827485176,0.03716113,202.32,202.28,0.03151737]
[1738827485376,0.03716113,202.32,202.29,4.9415]
[1738827485569,0.03716113,202.32,202.28,0.03151737]
[1738827486378,8.44555139,202.29,202.28,0.03151737]
[1738827486777,13.38715139,202.29,202.28,0.03151737]
[1738827487279,4.9421,202.27,202.17,8.44555139]
[1738827487478,8.44555139,202.24,202.17,8.44555139]
[1738827488075,8.44555139,202.24,202.17,13.38985139]
[1738827488278,0.03449662,202.23,202.18,0.03421408]
[1738827490179,0.03449662,202.23,202.18,4.97851408]
[1738827490679,0.03449662,202.23,202.18,0.03421408]
[1738827491076,0.03449662,202.23,202.19,8.44555139]
[1738827492277,0.03449662,202.23,202.21,4.9435]
[1738827494482,0.03449662,202.23,202.2,4.9438]
[1738827494883,0.03449662,202.23,202.18,0.03421408]
[1738827495084,8.44555139,202.22,202.18,0.03421408]
[1738827495985,0.03449662,202.23,202.18,0.03421408]
[1738827498083,0.03449662,202.23,202.19,8.44555139]
[1738827499783,0.03449662,202.23,202.2,4.9437]
[1738827499979,0.03449662,202.23,202.19,8.44555139]
[1738827501785,0.03449662,202.23,202.19,13.38955139]
[1738827502482,0.03449662,202.23,202.19,8.44555139]
[1738827502688,0.03449662,202.23,202.18,4.97851408]
[1738827502887,0.03449662,202.23,202.18,0.03421408]
[1738827504890,0.03449662,202.23,202.19,8.44555139]
[1738827506089,0.03449662,202.23,202.21,8.44555139]
[1738827506291,0.03449662,202.23,202.22,4.9433]
[1738827506791,0.03449662,202.23,202.21,8.44555139]
[1738827507891,0.03449662,202.23,202.19,8.44555139]
[1738827508490,0.03449662,202.23,202.19,13.38955139]
[1738827508790,0.03449662,202.23,202.19,8.44555139]
[1738827509791,0.03449662,202.23,202.2,4.9438]
[1738827511493,0.03449662,202.23,202.19,13.38955139]
[1738827519099,0.03449662,202.23,202.18,0.03421408]
[1738827523596,0.03449662,202.23,202.21,8.44555139]
[1738827524500,0.03449662,202.23,202.19,8.44555139]
[1738827524900,0.03449662,202.23,202.2,4.9438]
[1738827525701,0.03449662,202.23,202.21,8.44555139]
[1738827526802,0.03449662,202.23,202.22,4.9433]
[1738827528003,0.03449662,202.23,202.21,8.44555139]
[1738827529407,0.03449662,202.23,202.21,13.38915139]
[1738827530909,0.03449662,202.23,202.22,4.9433]
[1738827532106,26.70568983,202.32,202.26,8.44555139]
[1738827532310,30.21014122,202.32,202.26,8.44555139]
[1738827533106,0.03409298,202.31,202.27,0.0345014]
[1738827538713,0.03409298,202.31,202.28,8.44555139]
[1738827539606,0.03409298,202.31,202.27,0.0345014]
[1738827540307,8.44555139,202.3,202.27,0.0345014]
[1738827541811,4.9417,202.29,202.27,0.0345014]
[1738827542012,8.44555139,202.3,202.27,0.0345014]
[1738827542711,0.03409298,202.31,202.27,0.0345014]
[1738827543918,4.9414,202.3,202.27,0.0345014]
[1738827544421,4.9416,202.29,202.27,0.0345014]
[1738827546122,8.44555139,202.3,202.27,0.0345014]
[1738827546420,13.38695139,202.3,202.27,0.0345014]
[1738827548019,8.44555139,202.3,202.27,0.0345014]
[1738827548725,4.97529298,202.31,202.27,0.0345014]
[1738827549226,0.03409298,202.31,202.27,0.0345014]
[1738827551727,0.03409298,202.31,202.27,4.9764014]
[1738827551927,0.03409298,202.31,202.28,8.44555139]
[1738827553830,0.03409298,202.31,202.29,4.9416]
[1738827554427,0.03409298,202.31,202.28,8.44555139]
[1738827555129,0.03409298,202.31,202.28,13.38745139]
[1738827557423,0.03409298,202.31,202.28,4.9419]
[1738827560726,0.03409298,202.31,202.28,8.44555139]
[1738827561734,0.03409298,202.31,202.3,4.9414]
[1738827567130,0.03409298,202.31,202.3,13.38695139]
[1738827567331,8.44555139,202.38,202.3,13.38695139]
[1738827567727,4.9397,202.37,202.3,13.38695139]
[1738827568234,54.08930622,202.43,202.36,8.44555139]
[1738827568532,0.0360742,202.41,202.39,8.44555139]
[1738827568933,0.0360742,202.41,202.37,13.42262285]
[1738827570639,0.0360742,202.41,202.39,8.44555139]
[1738827570829,0.0360742,202.41,202.39,13.38465139]
[1738827571036,0.0360742,202.41,202.39,8.44555139]
[1738827571235,20.28348983,202.44,202.39,8.44555139]
[1738827571437,20.28348983,202.44,202.43,13.38375139]
[1738827571732,20.28348983,202.5,202.43,8.44555139]
[1738827571930,20.28348983,202.5,202.47,8.44555139]
[1738827573130,20.28348983,202.5,202.49,8.44555139]
[1738827574839,0.03782942,202.51,202.49,8.44555139]
[1738827581344,0.03782942,202.51,202.46,0.03459408]
[1738827581944,4.97432942,202.51,202.46,0.03459408]
[1738827584644,0.03782942,202.51,202.46,0.03459408]
[1738827585347,0.03782942,202.51,202.47,8.44555139]
[1738827586848,0.03782942,202.51,202.46,0.03459408]
[1738827587048,4.9367,202.5,202.46,0.03459408]
[1738827587249,8.44555139,202.5,202.46,0.03459408]
[1738827588751,4.937,202.48,202.46,0.03459408]
[1738827589050,0.03782942,202.51,202.46,0.03459408]
[1738827590751,4.9366,202.5,202.46,0.03459408]
[1738827592553,0.03782942,202.51,202.46,0.03459408]
[1738827597055,0.03782942,202.51,202.46,4.97179408]
[1738827600451,0.03782942,202.51,202.46,0.03459408]
[1738827600651,8.44555139,202.5,202.46,0.03459408]
[1738827600954,8.44555139,202.48,202.46,0.03459408]
[1738827601154,4.9372,202.47,202.41,8.44555139]
[1738827602454,0.03409255,202.46,202.42,0.03780103]
[1738827604858,8.47964394,202.46,202.42,0.03780103]
[1738827605361,8.44555139,202.44,202.42,0.03780103]
[1738827605560,8.44555139,202.44,202.35,8.44555139]
[1738827605760,8.44555139,202.42,202.35,8.44555139]
[1738827606664,0.03153771,202.41,202.36,0.03722393]
[1738827608466,4.9389,202.4,202.36,0.03722393]
[1738827608666,8.44555139,202.4,202.36,0.03722393]
[1738827609765,4.9392,202.39,202.36,0.03722393]
[1738827611068,0.03153771,202.41,202.36,0.03722393]
[1738827611267,4.97043771,202.41,202.36,0.03722393]
[1738827611567,0.03153771,202.41,202.36,0.03722393]
[1738827613266,4.97033771,202.41,202.36,0.03722393]
[1738827613666,4.97033771,202.41,202.37,8.44555139]
[1738827613969,4.97033771,202.41,202.36,0.03722393]
[1738827615267,0.03153771,202.41,202.36,0.03722393]
[1738827617074,4.97023771,202.41,202.36,0.03722393]
[1738827618673,0.03153771,202.41,202.36,0.03722393]
[1738827623282,0.03153771,202.41,202.36,4.97712393]
[1738827623485,0.03153771,202.41,202.39,8.44555139]
[1738827624379,0.03153771,202.41,202.4,4.9389]
[1738827626083,0.03153771,202.41,202.39,8.44555139]
[1738827630186,0.03153771,202.41,202.37,8.44555139]
[1738827631285,8.44555139,202.4,202.36,0.03722393]
[1738827631783,0.03153771,202.41,202.36,0.03722393]
[1738827631982,8.44555139,202.4,202.36,0.03722393]
[1738827633684,0.03153771,202.41,202.37,8.44555139]
[1738827633886,0.03153771,202.41,202.39,8.44555139]
[1738827637489,0.03153771,202.41,202.36,0.03722393]
[1738827638189,4.97043771,202.41,202.36,0.03722393]
[1738827639889,0.03153771,202.41,202.36,0.03722393]
[1738827640090,0.03153771,202.41,202.37,8.44555139]
[1738827641989,0.03153771,202.41,202.37,13.38515139]
[1738827647088,0.03153771,202.41,202.37,8.44555139]
[1738827651293,0.03153771,202.41,202.36,4.97712393]
[1738827654402,0.03153771,202.41,202.37,8.44555139]
[1738827655804,0.03153771,202.41,202.36,0.03722393]
[1738827655994,8.44555139,202.4,202.36,0.03722393]
[1738827656197,8.44555139,202.38,202.36,0.03722393]
[1738827656392,0.03153771,202.41,202.36,0.03722393]
[1738827656797,8.44555139,202.4,202.36,0.03722393]
[1738827657503,4.9395,202.38,202.36,0.03722393]
[1738827660501,13.38505139,202.38,202.36,0.03722393]
[1738827660704,4.9397,202.37,202.36,0.03722393]
[1738827664304,8.44555139,202.38,202.29,8.44555139]
[1738827664510,13.38595139,202.34,202.26,1.4797]
[1738827665409,13.38595139,202.34,202.26,6.422]
[1738827665708,0.03735328,202.32,202.28,0.0366585]